bitfinex/quotes_SOLUSD_20251231
["timestamp","ask_amount","ask_price","bid_price","bid_amount"]
[1767199419084,12.46337394,124.45,124.41,6.75138446]
[1767199419476,12.46337394,124.46,124.41,6.75138446]
[1767199419875,34.74176461,124.5,124.41,6.75138446]
[1767199419876,14.66,124.52,124.41,6.75138446]
[1767199420079,12.46337394,124.44,124.41,6.75138446]
[1767199420275,13.17210745,124.43,124.41,6.75138446]
[1767199420591,0.70873351,124.43,124.41,4.46011797]
[1767199420799,12.46337394,124.42,124.41,4.46011797]
[1767199421102,27.12337394,124.47,124.42,0.67232679]
[1767199421395,14.66,124.47,124.42,0.67232679]
[1767199421600,14.66,124.47,124.41,12.49794011]
[1767199421601,14.66,124.47,124.43,0.67232679]
[1767199421806,12.46337394,124.5,124.45,0.67232679]
[1767199422179,14.68,124.52,124.46,0.67232679]
[1767199422500,12.46337394,124.49,124.46,0.67232679]
[1767199422701,12.46337394,124.48,124.42,0.67232679]
[1767199423005,12.46337394,124.48,124.43,0.67232679]
[1767199423382,12.46337394,124.46,124.43,0.67232679]
[1767199423991,0.60873351,124.49,124.43,0.67232679]
[1767199424193,12.46337394,124.46,124.43,0.67232679]
[1767199424399,14.68,124.5,124.43,0.67232679]
[1767199424584,14.68,124.5,124.44,0.67232679]
[1767199424905,12.46337394,124.49,124.44,0.67232679]
[1767199425073,12.46337394,124.47,124.44,0.67232679]
[1767199425277,12.46337394,124.47,124.41,4.46011797]
[1767199425278,12.46337394,124.45,124.42,0.67232679]
[1767199425477,12.46337394,124.44,124.41,4.46011797]
[1767199425704,0.60873351,124.47,124.41,4.46011797]
[1767199425911,12.46337394,124.44,124.41,4.46011797]
[1767199426399,14.68,124.48,124.42,0.67232679]
[1767199426599,12.46337394,124.46,124.42,0.67232679]
[1767199426791,12.46337394,124.47,124.42,0.67232679]
[1767199427095,0.60873351,124.5,124.43,0.67232679]
[1767199427316,12.46337394,124.48,124.43,0.67232679]
[1767199427489,12.46337394,124.47,124.43,0.67232679]
[1767199427699,0.60873351,124.5,124.43,0.67232679]
[1767199427904,12.46337394,124.47,124.43,0.67232679]
[1767199428104,0.60873351,124.5,124.43,0.67232679]
[1767199428285,12.46337394,124.49,124.44,0.67232679]
[1767199428700,12.46337394,124.47,124.44,0.67232679]
[1767199429117,12.46337394,124.46,124.41,4.46011797]
[1767199429300,12.46337394,124.46,124.42,0.67232679]
[1767199429486,12.46337394,124.47,124.42,0.67232679]
[1767199429685,14.68,124.5,124.44,12.46337394]
[1767199429904,0.60873351,124.53,124.45,0.67232679]
[1767199430211,0.60873351,124.53,124.46,0.67232679]
[1767199430508,12.46337394,124.51,124.46,0.67232679]
[1767199430692,12.46337394,124.52,124.46,0.67232679]
[1767199430899,14.68,124.54,124.47,0.67232679]
[1767199431094,12.46337394,124.51,124.47,0.67232679]
[1767199431298,22.70976416,124.54,124.47,0.67232679]
[1767199431494,0.60873351,124.53,124.47,0.67232679]
[1767199431808,12.46337394,124.51,124.47,0.67232679]
[1767199432009,0.60873351,124.53,124.47,0.67232679]
[1767199432192,12.46337394,124.52,124.47,0.67232679]
[1767199433094,14.68,124.54,124.47,0.67232679]
[1767199433295,12.46337394,124.52,124.47,0.67232679]
[1767199433914,14.68,124.54,124.49,0.68432389]
[1767199434086,12.46337394,124.53,124.49,0.68432389]
[1767199435314,12.46337394,124.54,124.49,0.68432389]
[1767199435522,15.28873351,124.56,124.49,0.68432389]
[1767199435715,0.60873351,124.56,124.5,0.68432389]
[1767199435903,12.46337394,124.56,124.51,0.68432389]
[1767199436309,8.0271034,124.58,124.53,0.68432389]
[1767199436310,12.46337394,124.58,124.53,0.68432389]
[1767199436507,0.60873351,124.58,124.47,0.68432389]
[1767199436721,12.46337394,124.53,124.48,0.68432389]
[1767199436925,12.46337394,124.52,124.48,0.68432389]
[1767199437101,15.28873351,124.55,124.48,0.68432389]
[1767199437438,12.46337394,124.52,124.48,0.68432389]
[1767199437907,15.28873351,124.55,124.48,0.68432389]
[1767199438096,12.46337394,124.52,124.48,0.68432389]
[1767199438296,12.46337394,124.53,124.48,0.68432389]
[1767199438518,15.28873351,124.55,124.48,8.0333436]
[1767199438724,14.68,124.55,124.49,0.68432389]
[1767199438921,12.46337394,124.55,124.5,0.68432389]
[1767199439126,15.28873351,124.58,124.51,0.68432389]
[1767199439127,12.46337394,124.56,124.51,0.68432389]
[1767199439428,12.46337394,124.55,124.51,0.68432389]
[1767199439725,12.46337394,124.56,124.51,0.68432389]
[1767199440534,7.68079059,124.55,124.51,0.68432389]
[1767199440709,7.68079059,124.56,124.51,0.68432389]
[1767199440903,7.68079059,124.55,124.51,0.68432389]
[1767199441102,7.68079059,124.53,124.51,0.68432389]
[1767199441337,7.68079059,124.52,124.46,0.68432389]
[1767199441627,7.68079059,124.52,124.45,14.68]
[1767199441628,0.60873351,124.57,124.49,0.68432389]
[1767199441806,7.68079059,124.54,124.48,7.68079059]
[1767199442002,15.28873351,124.57,124.51,0.68432389]
[1767199442214,14.68,124.57,124.51,0.68432389]
[1767199442410,14.68,124.57,124.52,7.68079059]
[1767199442704,14.68,124.57,124.53,7.68079059]
[1767199442905,14.68,124.57,124.54,0.68432389]
[1767199443104,8.6325253,124.63,124.55,0.68432389]
[1767199443512,7.68079059,124.6,124.55,0.68432389]
[1767199443713,0.60873351,124.62,124.55,0.68432389]
[1767199443909,7.68079059,124.6,124.55,0.68432389]
[1767199444113,7.68079059,124.62,124.56,7.68079059]
[1767199444426,23.31188561,124.64,124.57,0.68432389]
[1767199444627,7.68079059,124.61,124.57,0.68432389]
[1767199444837,7.68079059,124.6,124.57,0.68432389]
[1767199445136,0.60873351,124.62,124.54,0.68432389]
[1767199445359,7.68079059,124.6,124.55,0.68432389]
[1767199445522,7.68079059,124.59,124.55,0.68432389]
[1767199445834,0.60873351,124.62,124.55,0.68432389]
[1767199446013,7.68079059,124.6,124.55,0.68432389]
[1767199446615,0.60873351,124.62,124.55,0.68432389]
[1767199446923,7.68079059,124.6,124.55,0.68432389]
[1767199447121,7.68079059,124.6,124.54,7.68079059]
[1767199447122,14.68,124.63,124.57,0.68432389]
[1767199447305,22.36079059,124.63,124.57,7.68079059]
[1767199447510,22.36079059,124.63,124.58,0.68432389]
[1767199447820,14.68,124.63,124.6,0.68432389]
[1767199448213,7.68079059,124.65,124.6,0.68432389]
[1767199448411,0.2,124.67,124.61,0.68432389]
[1767199448642,7.88079059,124.67,124.62,0.68432389]
[1767199449110,0.2,124.67,124.63,0.68432389]
[1767199449432,7.68079059,124.66,124.63,0.68432389]
[1767199449622,7.68079059,124.65,124.6,7.68079059]
[1767199449825,0.2,124.67,124.61,0.68432389]
[1767199450214,0.2,124.67,124.62,0.68432389]
[1767199450410,7.68079059,124.66,124.62,0.68432389]
[1767199450614,0.2,124.67,124.64,0.68432389]
[1767199451023,7.88079059,124.67,124.64,0.68432389]
[1767199451222,0.2,124.67,124.64,0.68432389]
[1767199451720,7.88079059,124.67,124.61,7.68079059]
[1767199452030,7.88079059,124.67,124.62,0.68432389]
[1767199452232,7.68079059,124.66,124.62,0.68432389]
[1767199452414,7.68079059,124.64,124.58,7.68079059]
[1767199452617,7.68079059,124.65,124.6,0.68432389]
[1767199453134,7.68079059,124.64,124.6,0.68432389]
[1767199453643,7.68079059,124.65,124.61,0.68432389]
[1767199453941,0.2,124.67,124.61,0.68432389]
[1767199454239,7.68079059,124.66,124.61,7.68079059]
[1767199454419,7.68079059,124.66,124.62,0.68432389]
[1767199454731,7.88079059,124.67,124.62,0.68432389]
[1767199455632,0.2,124.67,124.63,0.68432389]
[1767199457036,7.88079059,124.67,124.63,0.68432389]
[1767199457340,7.68079059,124.66,124.63,0.68432389]
[1767199457537,0.2,124.67,124.63,0.68432389]
[1767199457742,7.68079059,124.66,124.63,0.68432389]
[1767199458434,0.2,124.67,124.63,0.68432389]
[1767199458632,7.88079059,124.67,124.63,0.68432389]
[1767199458829,7.68079059,124.66,124.63,0.68432389]
[1767199459033,7.88079059,124.67,124.63,0.68432389]
[1767199459227,0.2,124.67,124.63,0.68432389]
[1767199459434,7.88079059,124.67,124.63,0.68432389]
[1767199459822,0.2,124.67,124.63,0.68432389]
[1767199460224,7.68079059,124.65,124.61,0.71783001]
[1767199460425,7.68079059,124.66,124.61,0.71783001]
[1767199460985,7.68079059,124.66,124.62,0.71783001]
[1767199462028,0.2,124.67,124.6,0.6989301]
[1767199462243,7.68079059,124.65,124.6,0.6989301]
[1767199462537,7.68079059,124.65,124.6,8.02565758]
[1767199462846,7.68079059,124.65,124.61,0.6989301]
[1767199463045,7.68079059,124.66,124.61,0.6989301]
[1767199463540,0.2,124.67,124.61,0.6989301]
[1767199463731,0.2,124.67,124.64,0.6989301]
[1767199464237,14.66,124.71,124.66,0.6989301]
[1767199464238,22.34079059,124.71,124.66,0.6989301]
[1767199464841,7.68079059,124.71,124.66,0.6989301]
[1767199465041,7.68079059,124.71,124.67,0.6989301]
[1767199465448,15.37081677,124.74,124.67,7.68079059]
[1767199465625,7.68079059,124.72,124.68,0.6989301]
[1767199466025,15.37081677,124.74,124.68,0.6989301]
[1767199466026,7.68079059,124.73,124.68,0.6989301]
[1767199466256,7.68079059,124.72,124.68,0.6989301]
[1767199467064,7.68079059,124.69,124.63,0.6989301]
[1767199467233,0.71081677,124.71,124.64,0.6989301]
[1767199467561,7.68079059,124.7,124.65,0.6989301]
[1767199468049,0.71081677,124.71,124.66,0.6989301]
[1767199468343,23.38757192,124.74,124.67,0.6989301]
[1767199468552,7.68079059,124.71,124.67,0.6989301]
[1767199468763,7.68079059,124.7,124.67,0.6989301]
[1767199469553,0.71081677,124.72,124.67,0.6989301]
[1767199469870,7.68079059,124.7,124.67,0.6989301]
[1767199470364,7.68079059,124.71,124.67,0.6989301]
[1767199470927,0.71081677,124.72,124.66,0.6989301]
[1767199471133,7.68079059,124.7,124.66,0.6989301]
[1767199471634,7.68079059,124.7,124.65,0.6989301]
[1767199471825,7.68079059,124.69,124.65,0.6989301]
[1767199472028,7.68079059,124.67,124.63,0.6989301]
[1767199472674,15.37081677,124.71,124.62,0.6989301]
[1767199472951,0.71081677,124.7,124.64,0.6989301]
[1767199473151,7.68079059,124.69,124.64,0.6989301]
[1767199473379,7.68079059,124.68,124.64,0.6989301]
[1767199474386,7.68079059,124.68,124.64,8.72202459]
[1767199474567,14.66,124.71,124.65,0.6989301]
[1767199474771,7.68079059,124.7,124.65,7.68079059]
[1767199475079,7.68079059,124.7,124.66,0.6989301]
[1767199475250,7.68079059,124.69,124.66,0.6989301]
[1767199475653,15.37081677,124.71,124.66,0.6989301]
[1767199475885,7.68079059,124.69,124.66,0.6989301]
[1767199476385,7.68079059,124.68,124.64,0.6989301]
[1767199476760,7.68079059,124.69,124.64,0.6989301]
[1767199477862,0.71081677,124.7,124.64,0.6989301]
[1767199478061,7.68079059,124.69,124.64,0.6989301]
[1767199478676,0.71081677,124.7,124.65,0.6989301]
[1767199479072,8.39160736,124.7,124.65,0.6989301]
[1767199479780,7.68079059,124.7,124.65,8.37972069]
[1767199479980,22.34079059,124.71,124.67,0.6989301]
[1767199480186,23.05160736,124.71,124.66,0.6989301]
[1767199480673,8.39160736,124.71,124.66,0.6989301]
[1767199480867,7.68079059,124.71,124.66,0.6989301]
[1767199481072,8.01757968,124.73,124.66,0.6989301]
[1767199481073,0.71081677,124.72,124.66,0.6989301]
[1767199481267,7.68079059,124.7,124.63,8.02336915]
[1767199481470,7.68079059,124.69,124.65,0.6989301]
[1767199482282,7.68079059,124.69,124.61,28.08622087]
[1767199482579,0.71081677,124.67,124.62,0.6989301]
[1767199482787,7.68079059,124.66,124.62,0.6989301]
[1767199483162,7.68079059,124.67,124.63,0.6989301]
[1767199483468,7.68079059,124.64,124.55,0.6989301]
[1767199483678,7.68079059,124.62,124.58,0.6989301]
[1767199483890,8.39160736,124.63,124.58,0.6989301]
[1767199484090,7.68079059,124.63,124.59,0.6989301]
[1767199484584,7.68079059,124.64,124.59,8.37972069]
[1767199484787,14.66,124.67,124.6,7.68079059]
[1767199484967,7.68079059,124.65,124.6,0.6989301]
[1767199485174,7.68079059,124.65,124.6,8.37972069]
[1767199487777,7.68079059,124.64,124.6,0.6989301]
[1767199488091,0.71081677,124.65,124.6,0.6989301]
[1767199488281,7.68079059,124.64,124.57,8.02735032]
[1767199488590,8.02181934,124.66,124.59,8.37972069]
[1767199488896,0.71081677,124.65,124.59,8.37972069]
[1767199489066,7.68079059,124.64,124.59,8.37972069]
[1767199489261,7.68079059,124.62,124.55,0.6989301]
[1767199489498,0.71081677,124.63,124.56,0.6989301]
[1767199489700,7.68079059,124.61,124.56,16.40797181]
[1767199489873,0.71081677,124.62,124.56,16.40797181]
[1767199489874,0.71081677,124.62,124.57,0.6989301]
[1767199490070,8.39160736,124.62,124.57,8.37972069]
[1767199490290,8.39160736,124.62,124.57,8.72641908]
[1767199490490,0.71081677,124.66,124.6,7.68079059]
[1767199490690,8.39160736,124.67,124.61,0.6989301]
[1767199490873,0.71081677,124.67,124.63,7.68079059]
[1767199491071,0.71081677,124.67,124.58,0.6989301]
[1767199491386,0.71081677,124.67,124.63,8.37053223]
[1767199491565,7.68079059,124.69,124.64,7.68079059]
[1767199491765,8.36860307,124.69,124.64,7.68079059]
[1767199492187,8.36860307,124.69,124.64,8.37053223]
[1767199492569,8.36860307,124.69,124.64,0.68974164]
[1767199492789,8.36860307,124.69,124.64,8.37053223]
[1767199493174,15.34781248,124.71,124.65,8.37053223]
[1767199493369,8.36860307,124.7,124.65,8.37053223]
[1767199493573,8.36860307,124.7,124.65,0.68974164]
[1767199493972,7.68079059,124.69,124.65,0.68974164]
[1767199494989,8.36860307,124.69,124.64,7.68079059]
[1767199495390,8.36860307,124.69,124.64,8.37053223]
[1767199495986,8.36860307,124.69,124.64,7.68079059]
[1767199496189,8.36860307,124.69,124.65,0.68974164]
[1767199496596,7.68079059,124.7,124.65,8.37053223]
[1767199497090,0.68781248,124.7,124.65,8.37053223]
[1767199497276,8.36860307,124.7,124.65,0.68974164]
[1767199497680,8.36860307,124.7,124.65,8.37053223]
[1767199497879,7.68079059,124.69,124.65,8.37053223]
[1767199498701,8.36860307,124.7,124.65,0.68974164]
[1767199498906,8.36860307,124.7,124.65,8.37053223]
[1767199499300,8.36860307,124.7,124.65,0.68974164]
[1767199499502,8.36860307,124.7,124.65,8.37053223]
[1767199499901,8.36860307,124.7,124.66,0.68974164]
[1767199500201,0.68781248,124.7,124.66,0.68974164]
[1767199500419,14.66,124.71,124.68,8.37053223]
[1767199500628,14.66,124.71,124.65,28.07814473]
[1767199500912,8.36860307,124.69,124.64,0.68974164]
[1767199501089,0.68781248,124.69,124.64,0.68974164]
[1767199501278,0.68781248,124.68,124.63,0.68974164]
[1767199501479,0.68781248,124.67,124.61,0.68974164]
[1767199501686,8.36860307,124.66,124.61,0.68974164]
[1767199501887,8.36860307,124.66,124.61,8.37053223]
[1767199502117,8.36860307,124.66,124.62,0.68974164]
[1767199502311,14.66,124.69,124.62,8.02404586]
[1767199502516,14.66,124.69,124.64,0.68974164]
[1767199502517,12.45604266,124.68,124.64,0.68974164]
[1767199502716,13.14385514,124.67,124.62,0.68974164]
[1767199502894,13.14385514,124.67,124.62,13.1457843]
[1767199503095,12.45604266,124.66,124.62,0.68974164]
[1767199503283,0.68781248,124.66,124.62,0.68974164]
[1767199503611,13.14385514,124.66,124.62,0.68974164]
[1767199504219,12.45604266,124.65,124.62,0.68974164]
[1767199504421,12.45604266,124.65,124.61,0.68974164]
[1767199504720,22.68004373,124.69,124.61,0.68974164]
[1767199504721,0.68781248,124.68,124.63,0.68974164]
[1767199505001,12.45604266,124.67,124.63,0.68974164]
[1767199505199,12.45604266,124.65,124.61,0.68974164]
[1767199505406,13.14385514,124.64,124.58,8.02664039]
[1767199505609,13.14385514,124.64,124.59,13.1457843]
[1767199505610,0.68781248,124.64,124.59,13.1457843]
[1767199505918,13.14385514,124.63,124.58,12.45604266]
[1767199506121,12.45604266,124.62,124.58,0.68974164]
[1767199506409,12.45604266,124.62,124.56,8.02799133]
[1767199506410,12.45604266,124.61,124.56,13.1457843]
[1767199506705,0.68781248,124.63,124.57,0.68974164]
[1767199506910,0.68781248,124.63,124.59,0.68974164]
[1767199506911,12.45604266,124.63,124.59,0.68974164]
[1767199507483,13.14385514,124.63,124.58,0.68974164]
[1767199508087,13.14385514,124.63,124.58,13.1457843]
[1767199508294,14.66,124.66,124.56,12.45604266]
[1767199508295,12.45604266,124.61,124.56,12.45604266]
[1767199508499,12.45604266,124.61,124.57,0.68974164]
[1767199508701,13.14385514,124.62,124.57,13.1457843]
[1767199509206,12.45604266,124.61,124.57,0.68974164]
[1767199509614,13.14385514,124.62,124.58,0.68974164]
[1767199509786,12.45604266,124.63,124.59,0.68974164]
[1767199509985,12.45604266,124.62,124.57,12.45604266]
[1767199510300,12.45604266,124.62,124.57,13.1457843]
[1767199510500,12.45604266,124.61,124.57,0.68974164]
[1767199511032,13.14385514,124.62,124.58,0.68974164]
[1767199511326,0.68781248,124.62,124.58,0.68974164]
[1767199511501,13.14385514,124.62,124.58,0.68974164]
[1767199511819,12.45604266,124.61,124.58,0.68974164]
[1767199512191,12.45604266,124.61,124.56,12.45604266]
[1767199512386,0.68781248,124.61,124.56,13.1457843]
[1767199512599,12.45604266,124.59,124.54,0.68974164]
[1767199512801,13.14385514,124.6,124.55,13.1457843]
[1767199512996,0.68781248,124.6,124.55,13.1457843]
[1767199513398,13.14385514,124.6,124.55,13.1457843]
[1767199513806,0.68781248,124.62,124.57,0.68974164]
[1767199514004,0.68781248,124.62,124.57,13.1457843]
[1767199514318,13.14385514,124.61,124.57,0.68974164]
[1767199514495,13.14385514,124.6,124.55,0.68974164]
[1767199514810,12.45604266,124.57,124.53,0.68974164]
[1767199515012,13.14385514,124.57,124.53,0.68974164]
[1767199515387,0.68781248,124.57,124.52,12.45604266]
[1767199515598,13.14385514,124.57,124.52,13.1457843]
[1767199515798,13.14385514,124.57,124.52,21.17658239]
[1767199516508,13.14385514,124.57,124.52,0.68974164]
[1767199516694,12.45604266,124.56,124.52,0.68974164]
[1767199517203,12.45604266,124.55,124.5,12.45604266]
[1767199517420,12.45604266,124.55,124.5,0.68974164]
[1767199517421,12.45604266,124.54,124.5,0.68974164]
[1767199517933,12.42604266,124.54,124.5,0.68974164]
[1767199518221,13.14385514,124.55,124.5,0.68974164]
[1767199518526,0.68781248,124.55,124.51,0.68974164]
[1767199518712,13.14385514,124.55,124.51,0.68974164]
[1767199518912,0.68781248,124.55,124.51,0.68974164]
[1767199519115,13.14385514,124.55,124.51,0.68974164]
[1767199519703,0.68781248,124.55,124.51,0.68974164]
[1767199519904,15.34781248,124.58,124.53,13.1457843]
[1767199520123,12.45604266,124.58,124.54,0.68974164]
[1767199520518,0.68781248,124.58,124.54,13.1457843]
[1767199521116,0.68781248,124.58,124.53,8.03008692]
[1767199521117,14.68,124.6,124.55,12.45604266]
[1767199521323,27.81545072,124.6,124.55,13.11127909]
[1767199521722,13.13545072,124.6,124.55,13.11127909]
[1767199521914,12.45604266,124.6,124.55,13.11127909]
[1767199522122,0.67940806,124.59,124.55,13.11127909]
[1767199522724,12.45604266,124.6,124.56,12.45604266]
[1767199522950,0.67940806,124.61,124.56,12.45604266]
[1767199523108,0.67940806,124.6,124.56,12.45604266]
[1767199523309,13.13545072,124.6,124.56,12.45604266]
[1767199523510,12.45604266,124.59,124.55,0.65523643]
[1767199523808,13.13545072,124.6,124.55,13.11127909]
[1767199524216,13.13545072,124.6,124.56,12.45604266]
[1767199525527,13.13545072,124.6,124.55,13.11127909]
[1767199527142,0.67940806,124.57,124.52,13.11127909]
[1767199527431,0.67940806,124.57,124.52,0.65523643]
[1767199527432,12.45604266,124.56,124.52,0.65523643]
[1767199528730,0.67940806,124.58,124.53,12.45604266]
[1767199528938,12.45604266,124.57,124.53,0.65523643]
[1767199529124,13.13545072,124.58,124.53,13.11127909]
[1767199529327,0.67940806,124.58,124.54,12.45604266]
[1767199529637,13.13545072,124.58,124.53,13.11127909]
[1767199529816,0.67940806,124.58,124.54,0.65523643]
[1767199530131,13.13545072,124.58,124.54,0.65523643]
[1767199530428,0.67940806,124.62,124.56,12.45604266]
[1767199530626,0.67940806,124.62,124.58,0.65523643]
[1767199530627,12.45604266,124.62,124.58,0.65523643]
[1767199530928,13.13545072,124.62,124.58,0.65523643]
[1767199531518,13.13545072,124.61,124.56,13.11127909]
[1767199531716,12.45604266,124.6,124.56,0.65523643]
[1767199532132,0.67940806,124.61,124.56,13.11127909]
[1767199532616,8.02504045,124.61,124.56,0.65523643]
[1767199532816,0.67940806,124.6,124.54,13.11127909]
[1767199533010,12.45604266,124.59,124.54,0.65523643]
[1767199533220,0.67940806,124.6,124.54,0.65523643]
[1767199533221,13.13545072,124.6,124.55,0.65523643]
[1767199533423,13.13545072,124.6,124.56,0.65523643]
[1767199533607,14.68,124.62,124.56,0.65523643]
[1767199533811,14.68,124.62,124.56,13.11127909]
[1767199533812,12.45604266,124.61,124.56,13.11127909]
[1767199534009,14.68,124.62,124.59,0.65523643]
[1767199534522,12.45604266,124.63,124.59,0.65523643]
[1767199534935,8.70256995,124.64,124.59,0.65523643]
[1767199535143,12.45604266,124.63,124.59,0.65523643]
[1767199535460,8.70256995,124.64,124.56,8.02804721]
[1767199535461,13.13545072,124.62,124.56,0.65523643]
[1767199535617,0.67940806,124.62,124.58,0.65523643]
[1767199535954,13.13545072,124.63,124.58,13.11127909]
[1767199536243,13.13545072,124.62,124.58,0.65523643]
[1767199536539,0.67940806,124.62,124.56,13.11127909]
[1767199536736,0.67940806,124.62,124.54,20.07280094]
[1767199536737,12.45604266,124.59,124.54,13.11127909]
[1767199537123,0.67940806,124.6,124.55,13.11127909]
[1767199537329,27.13604266,124.61,124.57,0.65523643]
[1767199537625,14.68,124.61,124.57,0.65523643]
[1767199537823,14.68,124.61,124.57,13.11127909]
[1767199538042,27.13604266,124.61,124.57,0.65523643]
[1767199539039,27.13604266,124.61,124.57,13.11127909]
[1767199539040,14.68,124.61,124.57,13.11127909]
[1767199539222,14.68,124.61,124.57,0.65523643]
[1767199539223,27.13604266,124.61,124.57,0.65523643]
[1767199539548,13.13545072,124.6,124.55,13.11127909]
[1767199539834,13.13545072,124.58,124.53,13.11127909]
[1767199540036,12.45604266,124.57,124.53,0.65523643]
[1767199540449,13.13545072,124.57,124.52,13.11127909]
[1767199540620,15.35940806,124.59,124.53,12.45604266]
[1767199540819,12.45604266,124.58,124.54,0.65523643]
[1767199541242,14.68,124.59,124.55,13.11127909]
[1767199541445,14.68,124.59,124.57,12.45604266]
[1767199541635,14.68,124.59,124.56,13.11127909]
[1767199541848,21.1604891,124.61,124.56,13.11127909]
[1767199542427,12.45604266,124.59,124.56,0.65523643]
[1767199542653,21.16117773,124.6,124.56,0.65523643]
[1767199542944,12.45604266,124.57,124.52,13.11127909]
[1767199543562,0.67940806,124.58,124.52,13.11127909]
[1767199543741,12.45604266,124.57,124.52,13.11127909]
[1767199543945,12.45604266,124.57,124.52,0.65523643]
[1767199544173,12.45604266,124.56,124.52,0.65523643]
[1767199544822,0.67940806,124.57,124.52,12.45604266]
[1767199545027,13.13545072,124.57,124.53,0.65523643]
[1767199545826,12.45604266,124.56,124.51,13.11127909]
[1767199546024,0.67940806,124.55,124.49,75.11127909]
[1767199546223,12.45604266,124.54,124.49,13.11127909]
[1767199546423,12.45604266,124.54,124.5,0.65523643]
[1767199546623,0.67940806,124.55,124.5,0.65523643]
[1767199546845,12.45604266,124.54,124.5,0.65523643]
[1767199547328,14.68,124.57,124.52,13.11127909]
[1767199547533,27.81545072,124.57,124.52,13.11127909]
[1767199547730,12.45604266,124.55,124.5,13.11127909]
[1767199547934,12.45604266,124.54,124.5,0.65523643]
[1767199548439,0.67940806,124.55,124.5,0.65523643]
[1767199548644,12.45604266,124.54,124.5,0.65523643]
[1767199548831,15.35940806,124.56,124.51,0.65523643]
[1767199549032,14.68,124.56,124.52,13.11127909]
[1767199549234,14.68,124.56,124.53,0.65523643]
[1767199549652,13.13545072,124.57,124.53,0.65523643]
[1767199550246,20.06655005,124.59,124.53,0.65523643]
[1767199550247,15.35940806,124.59,124.54,0.65523643]
[1767199550446,14.68,124.59,124.55,13.11127909]
[1767199550847,27.13604266,124.59,124.55,13.11127909]
[1767199551443,27.13604266,124.59,124.55,0.65523643]
[1767199551626,27.13604266,124.59,124.55,13.11127909]
[1767199551830,27.13604266,124.59,124.55,0.65523643]
[1767199552051,14.68,124.59,124.55,0.65523643]
[1767199552350,27.13604266,124.59,124.55,0.65523643]
[1767199552858,14.68,124.59,124.55,0.65523643]
[1767199553028,27.13604266,124.59,124.55,0.65523643]
[1767199553230,27.13604266,124.59,124.53,13.14493325]
[1767199553231,12.45604266,124.58,124.53,13.14493325]
[1767199553432,14.68,124.59,124.54,0.68889059]
[1767199553631,12.45604266,124.58,124.54,13.14493325]
[1767199554357,14.68,124.59,124.56,0.68889059]
[1767199554732,14.68,124.59,124.56,13.14493325]
[1767199554932,14.68,124.59,124.56,0.68889059]
[1767199555234,14.68,124.59,124.56,13.14493325]
[1767199555435,13.15403589,124.61,124.56,13.14493325]
[1767199556063,14.68,124.62,124.58,13.14493325]
[1767199556267,15.37799323,124.62,124.58,12.45604266]
[1767199556559,14.68,124.62,124.58,13.14493325]
[1767199557556,14.68,124.62,124.59,12.45604266]
[1767199557750,14.68,124.62,124.59,13.14493325]
[1767199559064,14.68,124.62,124.59,0.68889059]
[1767199559247,27.13604266,124.62,124.58,0.68889059]
[1767199559762,27.13604266,124.62,124.59,13.14493325]
[1767199559763,14.68,124.62,124.59,13.14493325]
[1767199560266,8.02229379,124.66,124.61,12.45604266]
[1767199560267,13.15403589,124.66,124.61,12.45604266]
[1767199560466,12.45604266,124.69,124.64,12.45604266]
[1767199560632,13.15403589,124.68,124.61,0.68889059]
[1767199560963,0.69799323,124.68,124.62,13.14493325]
[1767199561138,36.61538866,124.71,124.62,0.68889059]
[1767199561139,12.45604266,124.66,124.62,0.68889059]
[1767199561338,0.69799323,124.67,124.62,13.14493325]
[1767199561547,0.69799323,124.67,124.63,13.14493325]
[1767199561741,14.68,124.69,124.63,13.14493325]
[1767199561742,12.45604266,124.68,124.63,13.14493325]
[1767199561973,12.45604266,124.67,124.63,13.14493325]
[1767199562458,0.69799323,124.68,124.63,8.35532924]
[1767199562670,7.66643865,124.67,124.63,8.35532924]
[1767199562870,8.36443188,124.67,124.61,7.66643865]
[1767199563041,7.66643865,124.66,124.61,0.68889059]
[1767199563237,8.36443188,124.65,124.6,8.35532924]
[1767199563653,0.69799323,124.65,124.61,0.68889059]
[1767199563865,8.02059513,124.68,124.61,8.35532924]
[1767199563866,0.69799323,124.67,124.61,8.35532924]
[1767199564153,15.37799323,124.69,124.64,8.35532924]
[1767199564357,7.66643865,124.67,124.58,0.68889059]
[1767199564566,7.66643865,124.67,124.57,14.68]
[1767199564567,0.69799323,124.68,124.63,0.68889059]
[1767199564772,7.66643865,124.67,124.63,8.35532924]
[1767199564940,7.66643865,124.67,124.63,0.68889059]
[1767199565140,8.36443188,124.66,124.61,7.66643865]
[1767199565359,8.36443188,124.66,124.61,8.35532924]
[1767199565675,8.36443188,124.66,124.62,0.68889059]
[1767199566045,0.69799323,124.66,124.62,8.35532924]
[1767199566773,8.36443188,124.66,124.62,0.68889059]
[1767199566969,7.66643865,124.65,124.62,0.68889059]
[1767199567144,8.36443188,124.64,124.59,8.35532924]
[1767199567345,7.66643865,124.63,124.59,0.68889059]